[Event "HSG Open 2022 A"]
[Site "Hilversum, Netherlands"]
[Date "2022.06.18"]
[Round "4.3"]
[White "Pham, Khoi"]
[Black "Grutter, Tim"]
[Result "0-1"]
[TimeControl "1:50 + 0.10"]
[WhiteElo "2244"]
[BlackElo "2234"]

1. e4 {[%clk 01:50:19]} {[%emt 00:00:01]} c5 {[%clk 01:50:15]} {[%emt
00:00:05]} 2. Nf3 {[%clk 01:50:25]} {[%emt 00:00:04]} e6 {[%clk 01:50:22]}
{[%emt 00:00:03]} 3. d4 {[%clk 01:50:29]} {[%emt 00:00:07]} cxd4 {[%clk
01:50:28]} {[%emt 00:00:04]} 4. Nxd4 {[%clk 01:50:34]} {[%emt 00:00:04]} Nc6
{[%clk 01:50:34]} {[%emt 00:00:04]} 5. Nc3 {[%clk 01:50:37]} {[%emt 00:00:07]}
Qc7 {[%clk 01:50:40]} {[%emt 00:00:04]} 6. Be3 {[%clk 01:50:41]} {[%emt
00:00:06]} a6 {[%clk 01:50:47]} {[%emt 00:00:03]} 7. g4 {[%clk 01:50:46]}
{[%emt 00:00:04]} b5 {[%clk 01:50:53]} {[%emt 00:00:05]} 8. Nxc6 {[%clk
01:50:45]} {[%emt 00:00:11]} Qxc6 {[%clk 01:51:00]} {[%emt 00:00:03]} 9. Qd2
{[%clk 01:50:48]} {[%emt 00:00:07]} Bb7 {[%clk 01:51:07]} {[%emt 00:00:02]} 10.
f3 {[%clk 01:49:34]} {[%emt 00:01:24]} b4 {[%clk 01:49:49]} {[%emt 00:01:29]}
11. Ne2 {[%clk 01:48:09]} {[%emt 00:01:35]} d5 {[%clk 01:48:57]} {[%emt
00:01:02]} 12. Nd4 {[%clk 01:41:15]} {[%emt 00:07:03]} Qc7 {[%clk 01:48:06]}
{[%emt 00:01:01]} 13. exd5 {[%clk 01:29:28]} {[%emt 00:11:58]} Bxd5 {[%clk
01:46:40]} {[%emt 00:01:35]} 14. O-O-O {[%clk 01:27:44]} {[%emt 00:01:56]} Nf6
{[%clk 01:39:32]} {[%emt 00:07:16]} 15. g5 {[%clk 01:19:26]} {[%emt 00:08:29]}
Nd7 {[%clk 01:36:51]} {[%emt 00:02:52]} 16. Bg2 {[%clk 01:18:25]} {[%emt
00:01:11]} Bc5 {[%clk 01:31:17]} {[%emt 00:05:43]} 17. Nf5 {[%clk 01:08:32]}
{[%emt 00:10:03]} O-O {[%clk 01:25:38]} {[%emt 00:05:49]} 18. Bxc5 {[%clk
01:07:53]} {[%emt 00:00:49]} Nxc5 {[%clk 01:20:52]} {[%emt 00:04:56]} 19. Qd4
{[%clk 01:07:48]} {[%emt 00:00:15]} exf5 {[%clk 01:20:46]} {[%emt 00:00:16]} 20.
Qxd5 {[%clk 01:07:53]} {[%emt 00:00:05]} a5 {[%clk 01:13:05]} {[%emt 00:07:52]}
21. Qd6 {[%clk 01:06:19]} {[%emt 00:01:43]} Qc8 {[%clk 01:11:59]} {[%emt
00:01:16]} 22. Rd5 {[%clk 01:05:02]} {[%emt 00:01:27]} Ne6 {[%clk 01:11:18]}
{[%emt 00:00:51]} 23. f4 {[%clk 01:02:28]} {[%emt 00:02:44]} Ra6 {[%clk
01:08:03]} {[%emt 00:03:26]} 24. Qe5 {[%clk 01:00:42]} {[%emt 00:01:55]} Rc6
{[%clk 01:05:52]} {[%emt 00:02:22]} 25. Rd2 {[%clk 00:59:29]} {[%emt 00:01:22]}
Rc5 {[%clk 01:03:49]} {[%emt 00:02:13]} 26. Bd5 {[%clk 00:57:30]} {[%emt
00:02:09]} a4 {[%clk 00:44:06]} {[%emt 00:19:54]} 27. Qe3 {[%clk 00:40:44]}
{[%emt 00:16:55]} b3 {[%clk 00:39:48]} {[%emt 00:04:28]} 28. axb3 {[%clk
00:38:24]} {[%emt 00:02:31]} axb3 {[%clk 00:39:45]} {[%emt 00:00:13]} 29. Qxb3
{[%clk 00:36:28]} {[%emt 00:02:06]} Ra5 {[%clk 00:35:59]} {[%emt 00:03:56]} 30.
c3 {[%clk 00:33:53]} {[%emt 00:02:45]} Nxf4 {[%clk 00:33:20]} {[%emt 00:02:49]}
31. Rhd1 {[%clk 00:32:03]} {[%emt 00:02:00]} Nxd5 {[%clk 00:31:22]} {[%emt
00:02:08]} 32. Rxd5 {[%clk 00:32:09]} {[%emt 00:00:04]} Qe6 {[%clk 00:30:07]}
{[%emt 00:01:25]} 33. Kc2 {[%clk 00:30:03]} {[%emt 00:02:15]} Qe2+ {[%clk
00:29:13]} {[%emt 00:01:04]} 34. R1d2 {[%clk 00:27:48]} {[%emt 00:02:26]} Qe4+
{[%clk 00:29:19]} {[%emt 00:00:04]} 35. R5d3 {[%clk 00:27:32]} {[%emt
00:00:26]} f4 {[%clk 00:28:18]} {[%emt 00:01:11]} 36. h4 {[%clk 00:25:58]}
{[%emt 00:01:43]} Ra1 {[%clk 00:25:51]} {[%emt 00:02:37]} 37. Qd5 {[%clk
00:24:00]} {[%emt 00:02:08]} Qa4+ {[%clk 00:25:26]} {[%emt 00:00:35]} 38. Qb3
{[%clk 00:24:06]} {[%emt 00:00:04]} Rc1+ {[%clk 00:25:32]} {[%emt 00:00:04]}
0-1

[Event "HSG Open 2022 A"]
[Site "Hilversum, Netherlands"]
[Date "2022.06.18"]
[Round "4.4"]
[White "Wiersma, Eelke"]
[Black "Konings, Frans"]
[Result "1/2-1/2"]
[TimeControl "1:50 + 0.10"]
[WhiteElo "2300"]
[BlackElo "2131"]

1. e4 {[%emt 00:00:39]} d6 {[%clk 01:49:51]} {[%emt 00:00:03]} 2. d4 {[%clk
01:50:06]} {[%emt 00:00:10]} Nf6 {[%clk 01:49:49]} {[%emt 00:00:12]} 3. Nc3
{[%clk 01:50:07]} {[%emt 00:00:10]} g6 {[%clk 01:49:54]} {[%emt 00:00:05]} 4.
Nf3 {[%clk 01:50:07]} {[%emt 00:00:09]} Bg7 {[%clk 01:49:54]} {[%emt 00:00:10]}
5. Be2 {[%clk 01:50:07]} {[%emt 00:00:09]} O-O {[%clk 01:49:58]} {[%emt
00:00:08]} 6. O-O {[%clk 01:50:08]} {[%emt 00:00:09]} Na6 {[%clk 01:49:15]}
{[%emt 00:00:53]} 7. Re1 {[%clk 01:46:45]} {[%emt 00:03:33]} c5 {[%clk
01:46:29]} {[%emt 00:02:56]} 8. d5 {[%clk 01:46:47]} {[%emt 00:00:08]} Nc7
{[%clk 01:46:22]} {[%emt 00:00:17]} 9. a4 {[%clk 01:46:29]} {[%emt 00:00:28]}
Bg4 {[%clk 01:40:50]} {[%emt 00:05:42]} 10. h3 {[%clk 01:41:14]} {[%emt
00:05:24]} Bxf3 {[%clk 01:40:55]} {[%emt 00:00:06]} 11. Bxf3 {[%clk 01:41:20]}
{[%emt 00:00:04]} Nd7 {[%clk 01:40:15]} {[%emt 00:00:49]} 12. g3 {[%clk
01:41:23]} {[%emt 00:00:07]} a6 {[%clk 01:38:34]} {[%emt 00:01:52]} 13. Bg2
{[%clk 01:41:12]} {[%emt 00:00:20]} 1/2-1/2

[Event "HSG Open 2022 A"]
[Site "Hilversum, Netherlands"]
[Date "2022.06.18"]
[Round "4.5"]
[White "Becx, Cesar"]
[Black "Van Foreest, Machteld"]
[Result "0-1"]
[TimeControl "1:50 + 0.10"]
[WhiteElo "2139"]
[BlackElo "2295"]

1. f4 {[%clk 01:50:18]} {[%emt 00:00:01]} d5 {[%clk 01:50:17]} {[%emt
00:00:04]} 2. Nf3 {[%clk 01:50:20]} {[%emt 00:00:07]} g6 {[%clk 01:50:23]}
{[%emt 00:00:05]} 3. g3 {[%clk 01:50:21]} {[%emt 00:00:09]} Bg7 {[%clk
01:50:30]} {[%emt 00:00:04]} 4. Bg2 {[%clk 01:50:26]} {[%emt 00:00:03]} Nf6
{[%clk 01:50:36]} {[%emt 00:00:04]} 5. O-O {[%clk 01:50:27]} {[%emt 00:00:10]}
O-O {[%clk 01:50:43]} {[%emt 00:00:03]} 6. d3 {[%clk 01:50:32]} {[%emt
00:00:05]} c5 {[%clk 01:50:50]} {[%emt 00:00:03]} 7. c3 {[%clk 01:46:36]}
{[%emt 00:04:06]} Nc6 {[%clk 01:50:55]} {[%emt 00:00:05]} 8. Na3 {[%clk
01:46:41]} {[%emt 00:00:04]} Rb8 {[%clk 01:50:35]} {[%emt 00:00:31]} 9. Ne5
{[%clk 01:34:44]} {[%emt 00:12:07]} Nxe5 {[%clk 01:40:13]} {[%emt 00:10:33]} 10.
fxe5 {[%clk 01:34:49]} {[%emt 00:00:04]} Nd7 {[%clk 01:40:15]} {[%emt
00:00:08]} 11. d4 {[%clk 01:30:42]} {[%emt 00:04:17]} e6 {[%clk 01:40:20]}
{[%emt 00:00:05]} 12. Nc2 {[%clk 01:14:09]} {[%emt 00:16:42]} Qb6 {[%clk
01:31:05]} {[%emt 00:09:25]} 13. e3 {[%clk 01:03:01]} {[%emt 00:11:18]} cxd4
{[%clk 01:28:01]} {[%emt 00:03:14]} 14. cxd4 {[%clk 01:03:01]} {[%emt
00:00:10]} f6 {[%clk 01:25:48]} {[%emt 00:02:24]} 15. exf6 {[%clk 01:00:11]}
{[%emt 00:03:00]} Nxf6 {[%clk 01:24:33]} {[%emt 00:01:25]} 16. b3 {[%clk
00:58:14]} {[%emt 00:02:07]} Bd7 {[%clk 01:21:04]} {[%emt 00:03:38]} 17. Ba3
{[%clk 00:55:16]} {[%emt 00:03:08]} Rf7 {[%clk 01:17:43]} {[%emt 00:03:31]} 18.
Bc5 {[%clk 00:53:23]} {[%emt 00:02:03]} Qc7 {[%clk 01:16:19]} {[%emt 00:01:35]}
19. a4 {[%clk 00:44:31]} {[%emt 00:09:02]} b6 {[%clk 01:12:46]} {[%emt
00:03:42]} 20. Bb4 {[%clk 00:41:22]} {[%emt 00:03:19]} a5 {[%clk 01:09:38]}
{[%emt 00:03:19]} 21. Bd2 {[%clk 00:40:35]} {[%emt 00:00:56]} Rbf8 {[%clk
01:06:01]} {[%emt 00:03:47]} 22. Na3 {[%clk 00:34:10]} {[%emt 00:06:36]} Bh6
{[%clk 01:01:00]} {[%emt 00:05:11]} 23. Rc1 {[%clk 00:22:03]} {[%emt 00:12:17]}
Qd8 {[%clk 00:54:58]} {[%emt 00:06:12]} 24. Nb5 {[%clk 00:18:37]} {[%emt
00:03:36]} Qe7 {[%clk 00:50:37]} {[%emt 00:04:31]} 25. b4 {[%clk 00:12:51]}
{[%emt 00:05:55]} axb4 {[%clk 00:43:28]} {[%emt 00:07:19]} 26. Qb3 {[%clk
00:12:33]} {[%emt 00:00:29]} Ne4 {[%clk 00:40:34]} {[%emt 00:03:04]} 27. Bxb4
{[%clk 00:06:54]} {[%emt 00:05:48]} Bxe3+ {[%clk 00:40:00]} {[%emt 00:00:45]}
28. Qxe3 {[%clk 00:05:11]} {[%emt 00:01:52]} Rxf1+ {[%clk 00:39:55]} {[%emt
00:00:15]} 29. Rxf1 {[%clk 00:02:45]} {[%emt 00:02:37]} Rxf1+ {[%clk 00:40:00]}
{[%emt 00:00:04]} 30. Kxf1 {[%clk 00:02:00]} {[%emt 00:00:55]} Qxb4 {[%clk
00:39:23]} {[%emt 00:00:48]} 31. Bxe4 {[%clk 00:01:54]} {[%emt 00:00:16]} Bxb5+
{[%clk 00:38:07]} {[%emt 00:01:26]} 32. axb5 {[%clk 00:01:55]} {[%emt
00:00:08]} dxe4 {[%clk 00:38:14]} {[%emt 00:00:04]} 33. Qg5 {[%clk 00:00:55]}
{[%emt 00:01:09]} Qc4+ {[%clk 00:37:22]} {[%emt 00:01:02]} 34. Kg2 {[%clk
00:00:50]} {[%emt 00:00:15]} Qe2+ {[%clk 00:29:37]} {[%emt 00:07:55]} 35. Kg1
{[%clk 00:00:35]} {[%emt 00:00:25]} Qd1+ {[%clk 00:29:41]} {[%emt 00:00:06]} 36.
Kg2 {[%clk 00:00:39]} {[%emt 00:00:06]} Qf3+ {[%clk 00:29:49]} {[%emt
00:00:02]} 37. Kg1 {[%clk 00:00:46]} {[%emt 00:00:03]} e3 {[%clk 00:28:29]}
{[%emt 00:01:31]} 38. Qf4 {[%clk 00:00:23]} {[%emt 00:00:32]} Qd1+ {[%clk
00:24:07]} {[%emt 00:04:32]} 39. Kg2 {[%clk 00:00:32]} {[%emt 00:00:01]} Qc2+
{[%clk 00:23:55]} {[%emt 00:00:22]} 40. Kg1 {[%clk 00:00:20]} {[%emt 00:00:22]}
Qb1+ {[%clk 00:21:26]} {[%emt 00:02:39]} 41. Kg2 {[%clk 00:00:12]} {[%emt
00:00:19]} Qa2+ {[%clk 00:19:19]} {[%emt 00:02:17]} 42. Kg1 {[%clk 00:00:19]}
{[%emt 00:00:03]} Qa3 {[%clk 00:18:46]} {[%emt 00:00:43]} 43. Qe5 {[%clk
00:00:18]} {[%emt 00:00:11]} Qc1+ {[%clk 00:17:23]} {[%emt 00:01:32]} 44. Kg2
{[%clk 00:00:22]} {[%emt 00:00:07]} Qc2+ {[%clk 00:17:30]} {[%emt 00:00:03]} 45.
Kf3 {[%emt 00:00:23]} Qf2+ {[%emt 00:00:10]} 46. Kg4 h5+ {[%emt 00:00:01]} 0-1

[Event "HSG Open 2022 A"]
[Site "Hilversum, Netherlands"]
[Date "2022.06.18"]
[Round "4.6"]
[White "Pijpers, Arthur"]
[Black "Vlaming, Jos"]
[Result "1-0"]
[TimeControl "1:50 + 0.10"]
[WhiteElo "2455"]
[BlackElo "2107"]

1. e4 {[%clk 01:50:17]} {[%emt 00:00:03]} e6 {[%clk 01:50:15]} {[%emt
00:00:06]} 2. d4 {[%clk 01:50:23]} {[%emt 00:00:03]} d5 {[%clk 01:50:21]}
{[%emt 00:00:04]} 3. Nc3 {[%clk 01:50:30]} {[%emt 00:00:04]} Bb4 {[%clk
01:50:26]} {[%emt 00:00:05]} 4. e5 {[%clk 01:50:36]} {[%emt 00:00:04]} c5
{[%clk 01:50:26]} {[%emt 00:00:10]} 5. a3 {[%clk 01:50:42]} {[%emt 00:00:04]}
Bxc3+ {[%clk 01:49:02]} {[%emt 00:01:33]} 6. bxc3 {[%clk 01:50:48]} {[%emt
00:00:05]} Qc7 {[%clk 01:48:53]} {[%emt 00:00:19]} 7. Qg4 {[%clk 01:50:50]}
{[%emt 00:00:08]} f5 {[%clk 01:48:07]} {[%emt 00:00:56]} 8. Qg3 {[%clk
01:50:55]} {[%emt 00:00:05]} cxd4 {[%clk 01:47:18]} {[%emt 00:00:59]} 9. cxd4
{[%clk 01:50:58]} {[%emt 00:00:07]} Ne7 {[%clk 01:46:03]} {[%emt 00:01:24]} 10.
c3 {[%clk 01:50:52]} {[%emt 00:00:16]} b6 {[%clk 01:37:00]} {[%emt 00:09:14]}
11. Ne2 {[%clk 01:47:19]} {[%emt 00:03:42]} O-O {[%clk 01:36:53]} {[%emt
00:00:18]} 12. Nf4 {[%clk 01:47:17]} {[%emt 00:00:12]} Qd7 {[%clk 01:36:08]}
{[%emt 00:00:55]} 13. a4 {[%clk 01:46:39]} {[%emt 00:00:48]} Ba6 {[%clk
01:31:19]} {[%emt 00:04:59]} 14. Bb5 {[%clk 01:46:32]} {[%emt 00:00:16]} Nec6
{[%clk 01:27:46]} {[%emt 00:03:44]} 15. Ba3 {[%clk 01:35:56]} {[%emt 00:10:46]}
Rc8 {[%clk 01:26:51]} {[%emt 00:01:05]} 16. h4 {[%clk 01:29:38]} {[%emt
00:06:28]} Bxb5 {[%clk 01:21:09]} {[%emt 00:05:52]} 17. axb5 {[%clk 01:29:43]}
{[%emt 00:00:05]} Na5 {[%clk 01:21:04]} {[%emt 00:00:15]} 18. h5 {[%clk
01:19:28]} {[%emt 00:10:25]} Qf7 {[%clk 01:15:37]} {[%emt 00:05:36]} 19. Qg5
{[%clk 00:59:28]} {[%emt 00:20:10]} Nd7 {[%clk 01:03:53]} {[%emt 00:11:54]} 20.
Bb4 {[%clk 00:57:43]} {[%emt 00:01:55]} Nb3 {[%clk 00:49:39]} {[%emt 00:14:25]}
21. Rb1 {[%clk 00:53:11]} {[%emt 00:04:41]} a5 {[%clk 00:49:12]} {[%emt
00:00:37]} 22. bxa6 {[%clk 00:53:14]} {[%emt 00:00:08]} Rxa6 {[%clk 00:48:45]}
{[%emt 00:00:36]} 23. O-O {[%clk 00:50:30]} {[%emt 00:02:54]} Nd2 {[%clk
00:39:20]} {[%emt 00:09:36]} 24. Ra1 {[%clk 00:39:20]} {[%emt 00:11:20]} Raa8
{[%clk 00:39:12]} {[%emt 00:00:17]} 25. Rfd1 {[%clk 00:33:22]} {[%emt
00:06:08]} Nc4 {[%clk 00:37:36]} {[%emt 00:01:47]} 26. g4 {[%clk 00:30:04]}
{[%emt 00:03:28]} Ndxe5 {[%clk 00:27:16]} {[%emt 00:10:30]} 27. dxe5 {[%clk
00:28:30]} {[%emt 00:01:43]} Nxe5 {[%clk 00:25:33]} {[%emt 00:01:53]} 28. Kg2
{[%clk 00:28:36]} {[%emt 00:00:04]} h6 {[%clk 00:25:22]} {[%emt 00:00:21]} 29.
Qh4 {[%clk 00:28:19]} {[%emt 00:00:27]} Rxa1 {[%clk 00:20:58]} {[%emt
00:04:35]} 30. Rxa1 {[%clk 00:28:27]} {[%emt 00:00:01]} fxg4 {[%clk 00:20:54]}
{[%emt 00:00:13]} 31. Qg3 {[%clk 00:27:05]} {[%emt 00:01:33]} Rc4 {[%clk
00:19:29]} {[%emt 00:01:35]} 32. Bd6 {[%clk 00:22:58]} {[%emt 00:04:18]} Rxf4
{[%clk 00:17:20]} {[%emt 00:02:18]} 33. Ra8+ {[%clk 00:13:05]} {[%emt
00:10:03]} Kh7 {[%clk 00:17:28]} {[%emt 00:00:02]} 34. Rf8 {[%clk 00:13:08]}
{[%emt 00:00:08]} Re4 {[%clk 00:04:57]} {[%emt 00:12:40]} 35. Rxf7 {[%clk
00:12:14]} {[%emt 00:01:04]} Nxf7 {[%clk 00:05:06]} {[%emt 00:00:01]} 36. Bc7
{[%clk 00:10:11]} {[%emt 00:02:13]} g6 {[%clk 00:04:08]} {[%emt 00:01:08]} 37.
hxg6+ {[%clk 00:09:44]} {[%emt 00:00:38]} Kxg6 {[%clk 00:04:17]} {[%emt
00:00:01]} 38. Bxb6 {[%clk 00:09:45]} {[%emt 00:00:08]} Ng5 {[%clk 00:02:50]}
{[%emt 00:01:37]} 39. Qb8 {[%clk 00:09:09]} {[%emt 00:00:46]} Nf3 {[%clk
00:01:41]} {[%emt 00:01:19]} 40. Qg8+ {[%clk 00:08:29]} {[%emt 00:00:50]} Kf6
{[%clk 00:01:28]} {[%emt 00:00:25]} 41. Bd8+ {[%clk 00:08:16]} {[%emt
00:00:21]} Ke5 {[%clk 00:01:28]} {[%emt 00:00:10]} 42. Qg7+ {[%clk 00:08:20]}
{[%emt 00:00:06]} Kf5 {[%clk 00:01:21]} {[%emt 00:00:17]} 43. Qf6# {[%clk
00:06:48]} {[%emt 00:00:04]} 1-0

[Event "HSG Open 2022 A"]
[Site "Hilversum, Netherlands"]
[Date "2022.06.18"]
[Round "4.7"]
[White "Leenhouts, Koen"]
[Black "Ercan, Selman"]
[Result "1-0"]
[TimeControl "1:50 + 0.10"]
[WhiteElo "2440"]
[BlackElo "2094"]

1. d4 {[%clk 01:43:19]} {[%emt 00:07:01]} d5 {[%clk 01:50:02]} {[%emt
00:00:18]} 2. c4 {[%clk 01:43:19]} {[%emt 00:00:10]} c6 {[%clk 01:50:00]}
{[%emt 00:00:12]} 3. Nf3 {[%clk 01:42:43]} {[%emt 00:00:45]} Nf6 {[%clk
01:49:50]} {[%emt 00:00:21]} 4. g3 {[%clk 01:42:11]} {[%emt 00:00:42]} Bf5
{[%clk 01:49:09]} {[%emt 00:00:51]} 5. Nc3 {[%clk 01:42:03]} {[%emt 00:00:18]}
e6 {[%clk 01:48:49]} {[%emt 00:00:30]} 6. Nh4 {[%clk 01:41:52]} {[%emt
00:00:20]} Bg6 {[%clk 01:47:44]} {[%emt 00:01:16]} 7. Nxg6 {[%clk 01:41:41]}
{[%emt 00:00:22]} hxg6 {[%clk 01:47:47]} {[%emt 00:00:06]} 8. Qd3 {[%clk
01:41:42]} {[%emt 00:00:09]} Nbd7 {[%clk 01:47:07]} {[%emt 00:00:49]} 9. Bg2
{[%clk 01:41:38]} {[%emt 00:00:15]} Bd6 {[%clk 01:45:28]} {[%emt 00:01:50]} 10.
O-O {[%clk 01:41:22]} {[%emt 00:00:25]} O-O {[%clk 01:43:53]} {[%emt 00:01:45]}
11. Re1 {[%clk 01:40:02]} {[%emt 00:01:30]} Qa5 {[%clk 01:37:10]} {[%emt
00:06:53]} 12. c5 {[%clk 01:37:20]} {[%emt 00:02:53]} Be7 {[%clk 01:33:54]}
{[%emt 00:03:25]} 13. Bd2 {[%clk 01:32:38]} {[%emt 00:04:52]} Qc7 {[%clk
01:23:50]} {[%emt 00:10:14]} 14. b4 {[%clk 01:32:35]} {[%emt 00:00:14]} e5
{[%clk 01:20:50]} {[%emt 00:03:09]} 15. e3 {[%clk 01:30:48]} {[%emt 00:01:58]}
e4 {[%clk 01:14:21]} {[%emt 00:06:39]} 16. Qe2 {[%clk 01:28:37]} {[%emt
00:02:21]} Rfe8 {[%clk 01:06:34]} {[%emt 00:07:56]} 17. b5 {[%clk 01:27:09]}
{[%emt 00:01:39]} Nf8 {[%clk 01:04:16]} {[%emt 00:02:28]} 18. a4 {[%clk
01:24:37]} {[%emt 00:02:43]} Qd7 {[%clk 01:01:41]} {[%emt 00:02:43]} 19. a5
{[%clk 01:23:29]} {[%emt 00:01:19]} a6 {[%clk 00:52:26]} {[%emt 00:09:24]} 20.
bxc6 {[%clk 01:23:21]} {[%emt 00:00:20]} bxc6 {[%clk 00:52:25]} {[%emt
00:00:10]} 21. Reb1 {[%clk 01:22:42]} {[%emt 00:00:49]} Bd8 {[%clk 00:48:46]}
{[%emt 00:03:48]} 22. Na4 {[%clk 01:22:13]} {[%emt 00:00:39]} Qf5 {[%clk
00:48:04]} {[%emt 00:00:51]} 23. Rb7 {[%clk 01:21:39]} {[%emt 00:00:45]} Ne6
{[%clk 00:43:54]} {[%emt 00:04:21]} 24. Nb6 {[%clk 01:20:33]} {[%emt 00:01:16]}
Bxb6 {[%clk 00:43:55]} {[%emt 00:00:08]} 25. axb6 {[%clk 01:15:25]} {[%emt
00:05:20]} Ng5 {[%clk 00:42:15]} {[%emt 00:01:48]} 26. Kf1 {[%clk 01:12:36]}
{[%emt 00:02:59]} Ng4 {[%clk 00:34:43]} {[%emt 00:07:42]} 27. h3 {[%clk
01:09:03]} {[%emt 00:03:42]} Nh2+ {[%clk 00:32:49]} {[%emt 00:02:04]} 28. Ke1
{[%clk 01:07:21]} {[%emt 00:01:52]} Ngf3+ {[%clk 00:19:27]} {[%emt 00:13:32]}
29. Kd1 {[%clk 01:07:15]} {[%emt 00:00:17]} Ng1 {[%clk 00:19:03]} {[%emt
00:00:33]} 30. Qe1 {[%clk 01:02:54]} {[%emt 00:04:32]} Nxh3 {[%clk 00:17:14]}
{[%emt 00:01:59]} 31. Bxh3 {[%clk 01:02:26]} {[%emt 00:00:39]} Qxh3 {[%clk
00:17:17]} {[%emt 00:00:06]} 32. Kc2 {[%clk 01:01:49]} {[%emt 00:00:47]} Qf5
{[%clk 00:14:35]} {[%emt 00:02:51]} 33. Qe2 {[%clk 01:01:17]} {[%emt 00:00:42]}
Ng4 {[%clk 00:14:14]} {[%emt 00:00:31]} 34. Rc7 {[%clk 01:00:51]} {[%emt
00:00:37]} Rac8 {[%clk 00:08:37]} {[%emt 00:05:46]} 35. Rxc8 {[%clk 01:00:16]}
{[%emt 00:00:46]} Qxc8 {[%clk 00:08:05]} {[%emt 00:00:42]} 36. Qxa6 {[%clk
00:59:20]} {[%emt 00:01:07]} Qxa6 {[%clk 00:05:27]} {[%emt 00:02:47]} 37. Rxa6
{[%clk 00:59:26]} {[%emt 00:00:05]} Rb8 {[%clk 00:05:17]} {[%emt 00:00:20]} 38.
Ra7 {[%clk 00:59:13]} {[%emt 00:00:23]} Nf6 {[%clk 00:04:42]} {[%emt 00:00:44]}
39. Rc7 {[%clk 00:59:16]} {[%emt 00:00:07]} 1-0

[Event "HSG Open 2022 A"]
[Site "Hilversum, Netherlands"]
[Date "2022.06.18"]
[Round "4.9"]
[White "Wagenvoorde, Guido"]
[Black "Roebers, Eline"]
[Result "1-0"]
[TimeControl "1:50 + 0.10"]
[WhiteElo "2090"]
[BlackElo "2378"]

1. d4 {[%clk 01:48:52]} {[%emt 00:01:27]} d5 {[%clk 01:46:30]} {[%emt
00:03:51]} 2. c4 {[%clk 01:48:53]} {[%emt 00:00:08]} c6 {[%clk 01:46:38]}
{[%emt 00:00:02]} 3. Nf3 {[%clk 01:48:55]} {[%emt 00:00:08]} Nf6 {[%clk
01:46:45]} {[%emt 00:00:04]} 4. Nc3 {[%clk 01:48:58]} {[%emt 00:00:06]} e6
{[%clk 01:46:52]} {[%emt 00:00:03]} 5. e3 {[%clk 01:49:00]} {[%emt 00:00:08]}
Nbd7 {[%clk 01:46:54]} {[%emt 00:00:07]} 6. Qc2 {[%clk 01:49:02]} {[%emt
00:00:09]} Bd6 {[%clk 01:43:49]} {[%emt 00:03:15]} 7. g4 {[%clk 01:48:05]}
{[%emt 00:01:07]} h6 {[%clk 01:42:49]} {[%emt 00:01:11]} 8. Rg1 {[%clk
01:48:04]} {[%emt 00:00:10]} e5 {[%clk 01:42:57]} {[%emt 00:00:03]} 9. cxd5
{[%clk 01:48:02]} {[%emt 00:00:11]} cxd5 {[%clk 01:43:05]} {[%emt 00:00:03]} 10.
Nb5 {[%clk 01:47:56]} {[%emt 00:00:15]} Bb8 {[%clk 01:43:09]} {[%emt 00:00:07]}
11. g5 {[%clk 01:47:41]} {[%emt 00:00:23]} hxg5 {[%clk 01:43:17]} {[%emt
00:00:04]} 12. Nxg5 {[%clk 01:47:41]} {[%emt 00:00:09]} e4 {[%clk 01:43:24]}
{[%emt 00:00:03]} 13. Bd2 {[%clk 01:47:35]} {[%emt 00:00:16]} Nb6 {[%clk
01:43:10]} {[%emt 00:00:25]} 14. Rc1 {[%clk 01:47:29]} {[%emt 00:00:15]} Bd7
{[%clk 01:41:35]} {[%emt 00:01:46]} 15. Bb4 {[%clk 01:47:01]} {[%emt 00:00:37]}
Bc6 {[%clk 01:40:28]} {[%emt 00:01:18]} 16. f4 {[%clk 01:45:53]} {[%emt
00:01:17]} exf3 {[%clk 00:56:20]} {[%emt 00:44:19]} 17. Nxf3 {[%clk 01:44:07]}
{[%emt 00:01:55]} Ne4 {[%clk 00:52:29]} {[%emt 00:04:02]} 18. Rxg7 {[%clk
01:30:19]} {[%emt 00:13:57]} a6 {[%clk 00:45:09]} {[%emt 00:07:30]} 19. Qg2
{[%clk 01:13:25]} {[%emt 00:17:03]} Nf6 {[%clk 00:35:44]} {[%emt 00:09:36]} 20.
Ng5 {[%clk 00:46:56]} {[%emt 00:26:37]} Nh5 {[%clk 00:31:43]} {[%emt 00:04:13]}
21. Qf2 {[%clk 00:37:49]} {[%emt 00:09:16]} Qf6 {[%clk 00:27:06]} {[%emt
00:04:47]} 22. Qxf6 {[%clk 00:28:12]} {[%emt 00:09:47]} Nxf6 {[%clk 00:27:14]}
{[%emt 00:00:03]} 23. Rxf7 {[%clk 00:28:07]} {[%emt 00:00:14]} Rxh2 {[%clk
00:25:06]} {[%emt 00:02:18]} 24. Rf8+ {[%clk 00:21:40]} {[%emt 00:06:38]} Kd7
{[%clk 00:25:15]} {[%emt 00:00:01]} 25. Rxf6 {[%clk 00:21:40]} {[%emt
00:00:09]} Bg3+ {[%clk 00:24:32]} {[%emt 00:00:53]} 26. Kd1 {[%clk 00:21:44]}
{[%emt 00:00:07]} axb5 {[%clk 00:24:40]} {[%emt 00:00:03]} 27. Rf3 {[%clk
00:19:32]} {[%emt 00:02:21]} Bh4 {[%clk 00:24:09]} {[%emt 00:00:41]} 28. Rf7+
{[%clk 00:16:50]} {[%emt 00:02:51]} Ke8 {[%clk 00:24:15]} {[%emt 00:00:04]} 29.
Re7+ {[%clk 00:15:16]} {[%emt 00:01:44]} Kd8 {[%clk 00:24:21]} {[%emt
00:00:04]} 30. Ne6+ {[%clk 00:15:17]} {[%emt 00:00:09]} Kc8 {[%clk 00:24:30]}
{[%emt 00:00:01]} 31. Rc7+ {[%clk 00:14:51]} {[%emt 00:00:36]} Kb8 {[%clk
00:24:39]} {[%emt 00:00:01]} 32. Bd6 {[%clk 00:14:48]} {[%emt 00:00:12]} 1-0